[Event "Wuerttemberg Rapid Teams 2024"]
[Site "B?blingen, Germany"]
[Date "2024.04.13"]
[Round "7.11"]
[White "Freiherr von Hauff, Christopher"]
[Black "Schulze, Andreas"]
[Result "0-1"]
[ECO "B02"]
[WhiteElo "1960"]
[BlackElo "2080"]
[Annotator "RC"]
[PlyCount "156"]
[EventDate "2024.04.13"]
[EventType "team-tourn"]
[SourceTitle "playchess.com"]
[Source "ChessBase"]
[SourceQuality "1"]
[TimeControl "900+5"]

1. e4 {[%emt 0:00:03]} Nf6 {[%emt 0:00:01]} 2. e5 {[%emt 0:00:04]} Nd5 {[%emt 0:00:01]} 3. Bc4 {[%emt 0:00:01]} Nb6 {[%emt 0:00:30]} 4. Bb3 {[%emt 0:00:02]} c5 {[%emt 0:00:36]} 5. Qe2 {[%emt 0:00:32]} Nc6 {[%emt 0:00:05]} 6. c3 {[%emt 0:00:01]} g6 {[%emt 0:00:38]} 7. f4 {[%emt 0:00:13]} Bh6 {[%emt 0:00:46]} 8. d3 {[%emt 0:00:57]} d5 {[%emt 0:00:57]} 9. exd6 {[%emt 0:00:24]} Qxd6 {[%emt 0:00:03]} 10. Nf3 {[%emt 0:00:16]} Bf5 {[%emt 0:00:21]} 11. Ne5 {[%emt 0:01:01]} O-O {[%emt 0:00:41]} 12. O-O {[%emt 0:01:11]} Bg7 {[%emt 0:01:33]} 13. Nxc6 {[%emt 0:01:12]} Qxc6 {[%emt 0:00:27]} 14. Nd2 {[%emt 0:01:27]} Rad8 {[%emt 0:00:25]} 15. Bc2 {[%emt 0:00:42]} c4 {[%emt 0:01:05]} 16. Nxc4 {[%emt 0:00:07]} Nxc4 {[%emt 0:00:09]} 17. dxc4 {[%emt 0:00:02]} Bxc2 {[%emt 0:00:06]} 18. Qxc2 {[%emt 0:00:02]} Qxc4 {[%emt 0:00:02]} 19. Be3 {[%emt 0:00:10]} a6 {[%emt 0:02:53]} 20. Rfe1 {[%emt 0:00:06]} e6 {[%emt 0:00:16]} 21. Qb3 {[%emt 0:00:37]} Qc6 {[%emt 0:01:01]} 22. Rad1 {[%emt 0:00:48]} b5 {[%emt 0:00:22]} 23. Qc2 {[%emt 0:00:29]} Qc4 {[%emt 0:00:10]} 24. a3 {[%emt 0:00:06]} Rc8 {[%emt 0:01:59]} 25. Qf2 {[%emt 0:00:05]} Rfd8 {[%emt 0:00:23]} 26. Bb6 {[%emt 0:00:18]} Rd3 {[%emt 0:00:15]} 27. h3 {[%emt 0:00:50]} Bh6 {[%emt 0:00:23]} 28. Rxd3 {[%emt 0:00:12]} Qxd3 {[%emt 0:00:01]} 29. Bd4 {[%emt 0:00:52]} Qf5 {[%emt 0:00:12]} 30. Rf1 {[%emt 0:00:21]} Rd8 {[%emt 0:00:12]} 31. Kh2 {[%emt 0:00:17]} Bf8 {[%emt 0:00:19]} 32. Qe3 {[%emt 0:00:44]} Bd6 {[%emt 0:00:01]} 33. Kh1 {[%emt 0:00:01]} h5 {[%emt 0:00:12]} 34. Qg3 {[%emt 0:00:32]} Be7 {[%emt 0:00:19]} 35. Qf3 {[%emt 0:00:10]} Qd5 {[%emt 0:00:11]} 36. Qe2 {[%emt 0:00:16]} Kh7 {[%emt 0:00:03]} 37. Kg1 {[%emt 0:00:11]} Bc5 {[%emt 0:00:06]} 38. Bxc5 {[%emt 0:00:41]} Qxc5+ {[%emt 0:00:01]} 39. Kh1 {[%emt 0:00:08]} Qd5 {[%emt 0:00:05]} 40. Rf2 {[%emt 0:00:10]} Qd1+ {[%emt 0:00:14]} 41. Kh2 {[%emt 0:00:10]} Qd6 {[%emt 0:00:06]} 42. Qe3 {[%emt 0:00:15]} Kg7 {[%emt 0:00:07]} 43. Re2 {[%emt 0:00:27]} Kg8 {[%emt 0:00:02]} 44. g4 {[%emt 0:00:09]} hxg4 {[%emt 0:00:07]} 45. hxg4 {[%emt 0:00:02]} Kg7 {[%emt 0:00:04]} 46. Kg2 {[%emt 0:00:32]} Qd5+ {[%emt 0:00:03]} 47. Kg3 {[%emt 0:00:23]} Rh8 {[%emt 0:00:15]} 48. Qe5+ {[%emt 0:00:10]} Qxe5 {[%emt 0:00:02]} 49. Rxe5 {[%emt 0:00:01]} Rc8 {[%emt 0:00:07]} 50. Kf3 {[%emt 0:00:09]} Rc4 {[%emt 0:00:02]} 51. f5 {[%emt 0:00:09]} gxf5 {[%emt 0:00:08]} 52. gxf5 {[%emt 0:00:01]} Kf6 {[%emt 0:00:01]} 53. Re3 {[%emt 0:00:11]} Kxf5 {[%emt 0:00:01]} 54. Rd3 {[%emt 0:00:01]} Rc6 {[%emt 0:00:10]} 55. Rd7 {[%emt 0:00:03]} f6 {[%emt 0:00:01]} 56. Rd8 {[%emt 0:00:01]} e5 {[%emt 0:00:00]} 57. Re8 {[%emt 0:00:02]} Re6 {[%emt 0:00:03]} 58. Rg8 {[%emt 0:00:05]} e4+ {[%emt 0:00:05]} 59. Ke3 {[%emt 0:00:01]} Ke5 {[%emt 0:00:01]} 60. b3 {[%emt 0:00:06]} f5 {[%emt 0:00:01]} 61. Rf8 {[%emt 0:00:01]} Rh6 {[%emt 0:00:19]} 62. Re8+ {[%emt 0:00:01]} Re6 {[%emt 0:00:04]} 63. Rf8 {[%emt 0:00:02]} Rc6 {[%emt 0:00:06]} 64. Re8+ {[%emt 0:00:05]} Kf6 {[%emt 0:00:02]} 65. Kd2 {[%emt 0:00:13]} Kg5 {[%emt 0:00:07]} 66. Rg8+ {[%emt 0:00:20]} Kf4 {[%emt 0:00:00]} 67. Re8 {[%emt 0:00:01]} Rh6 {[%emt 0:00:09]} 68. c4 {[%emt 0:00:03]} bxc4 {[%emt 0:00:11]} 69. bxc4 {[%emt 0:00:01]} Rc6 {[%emt 0:00:02]} 70. Kc3 {[%emt 0:00:03]} Kf3 {[%emt 0:00:01]} 71. Kd4 {[%emt 0:00:02]} f4 {[%emt 0:00:08]} 72. Kd5 {[%emt 0:00:01]} Rc7 {[%emt 0:00:04]} 73. c5 {[%emt 0:00:10]} e3 {[%emt 0:00:03]} 74. Kd6 {[%emt 0:00:03]} Rg7 {[%emt 0:00:08]} 75. Re6 {[%emt 0:00:13]} Kf2 {[%emt 0:00:04]} 76. c6 {[%emt 0:00:01]} e2 {[%emt 0:00:10]} 77. c7 {[%emt 0:00:14]} Rxc7 {[%emt 0:00:10]} 78. Kxc7 {[%emt 0:00:02]} e1=Q {[%emt 0:00:04]} 0-1

[Event "Wuerttemberg Rapid Teams 2024"]
[Site "B?blingen, Germany"]
[Date "2024.04.13"]
[Round "7.12"]
[White "Deubel, Silas"]
[Black "Birkenmaier, Rainer"]
[Result "1/2-1/2"]
[ECO "A11"]
[WhiteElo "1851"]
[BlackElo "2111"]
[Annotator "RC"]
[PlyCount "119"]
[EventDate "2024.04.13"]
[EventType "team-tourn"]
[SourceTitle "playchess.com"]
[Source "ChessBase"]
[SourceQuality "1"]
[TimeControl "900+5"]

1. Nf3 {[%emt 0:00:06]} d5 {[%emt 0:00:04]} 2. e3 {[%emt 0:00:02]} Nf6 {[%emt 0:00:03]} 3. c4 {[%emt 0:00:01]} e6 {[%emt 0:00:02]} 4. Nc3 {[%emt 0:00:02]} c6 {[%emt 0:00:02]} 5. b3 {[%emt 0:00:03]} Bd6 {[%emt 0:00:03]} 6. Bb2 {[%emt 0:00:04]} O-O {[%emt 0:00:02]} 7. Be2 {[%emt 0:00:05]} Nbd7 {[%emt 0:00:02]} 8. Qc2 {[%emt 0:00:14]} e5 {[%emt 0:00:41]} 9. cxd5 {[%emt 0:00:46]} Nxd5 {[%emt 0:00:20]} 10. a3 {[%emt 0:00:22]} Nxc3 {[%emt 0:00:12]} 11. Bxc3 {[%emt 0:00:14]} Qe7 {[%emt 0:00:02]} 12. h4 {[%emt 0:00:24]} h6 {[%emt 0:00:41]} 13. Bc4 {[%emt 0:01:12]} e4 {[%emt 0:01:16]} 14. Nd4 {[%emt 0:00:13]} Nf6 {[%emt 0:00:15]} 15. b4 {[%emt 0:00:35]} a6 {[%emt 0:00:16]} 16. d3 {[%emt 0:00:19]} Bd7 {[%emt 0:00:53]} 17. dxe4 {[%emt 0:00:04]} Nxe4 {[%emt 0:00:15]} 18. Bb2 {[%emt 0:00:20]} c5 {[%emt 0:00:54]} 19. bxc5 {[%emt 0:01:06]} Nxc5 {[%emt 0:01:01]} 20. Nf5 {[%emt 0:00:42]} Bxf5 {[%emt 0:00:19]} 21. Qxf5 {[%emt 0:00:05]} Rad8 {[%emt 0:02:57]} 22. Rd1 {[%emt 0:03:06]} b5 {[%emt 0:02:04]} 23. Ba2 {[%emt 0:00:56]} Qe4 {[%emt 0:00:50]} 24. Qxe4 {[%emt 0:00:04]} Nxe4 {[%emt 0:00:01]} 25. O-O {[%emt 0:00:07]} Be7 {[%emt 0:00:07]} 26. Bd5 {[%emt 0:00:15]} Nf6 {[%emt 0:00:26]} 27. Bf3 {[%emt 0:00:45]} Rxd1 {[%emt 0:00:15]} 28. Rxd1 {[%emt 0:00:00]} Rd8 {[%emt 0:00:01]} 29. Rxd8+ {[%emt 0:00:14]} Bxd8 {[%emt 0:00:02]} 30. g3 {[%emt 0:00:02]} Be7 {[%emt 0:00:05]} 31. Kf1 {[%emt 0:00:12]} Kf8 {[%emt 0:00:15]} 32. Ke2 {[%emt 0:00:25]} Ke8 {[%emt 0:00:02]} 33. Bb7 {[%emt 0:00:01]} Kd7 {[%emt 0:00:15]} 34. Bxa6 {[%emt 0:00:08]} Kc6 {[%emt 0:00:01]} 35. Bc8 {[%emt 0:00:03]} Ne8 {[%emt 0:00:31]} 36. Bg4 {[%emt 0:00:20]} Bf6 {[%emt 0:00:04]} 37. Bf3+ {[%emt 0:00:05]} Kc5 {[%emt 0:00:08]} 38. Bxf6 {[%emt 0:00:17]} Nxf6 {[%emt 0:00:00]} 39. Kd3 {[%emt 0:00:05]} g6 {[%emt 0:00:08]} 40. Bd1 {[%emt 0:00:10]} Nd7 {[%emt 0:00:07]} 41. f4 {[%emt 0:00:15]} f6 {[%emt 0:00:15]} 42. g4 {[%emt 0:00:03]} g5 {[%emt 0:00:11]} 43. hxg5 {[%emt 0:01:03]} hxg5 {[%emt 0:00:08]} 44. Bb3 {[%emt 0:00:11]} Nb6 {[%emt 0:00:14]} 45. Be6 {[%emt 0:01:02]} Kd6 {[%emt 0:00:04]} 46. Bf7 {[%emt 0:00:19]} Kc5 {[%emt 0:00:21]} 47. fxg5 {[%emt 0:00:41]} fxg5 {[%emt 0:00:01]} 48. e4 {[%emt 0:00:09]} Nd7 {[%emt 0:00:03]} 49. Be6 {[%emt 0:00:08]} Ne5+ {[%emt 0:00:01]} 50. Kc3 {[%emt 0:00:13]} Nf3 {[%emt 0:00:14]} 51. Bf5 {[%emt 0:00:20]} Ne5 {[%emt 0:00:11]} 52. Kb3 {[%emt 0:00:09]} Nc4 {[%emt 0:00:06]} 53. Be6 {[%emt 0:00:08]} Nd2+ {[%emt 0:00:06]} 54. Kc3 {[%emt 0:00:13]} Nxe4+ {[%emt 0:00:02]} 55. Kd3 {[%emt 0:00:02]} Nd6 {[%emt 0:00:03]} 56. Bg8 {[%emt 0:00:16]} Ne8 {[%emt 0:00:06]} 57. Bf7 {[%emt 0:00:08]} Nf6 {[%emt 0:00:06]} 58. Be6 {[%emt 0:00:08]} Kd6 {[%emt 0:00:21]} 59. Bf5 {[%emt 0:00:04]} Kd5 {[%emt 0:00:15]} 60. Bc8 {[%emt 0:00:07]} 1/2-1/2

[Event "Wuerttemberg Rapid Teams 2024"]
[Site "B?blingen, Germany"]
[Date "2024.04.13"]
[Round "7.13"]
[White "Kuklin, Valentin"]
[Black "Peng, Xiang-Tobias"]
[Result "0-1"]
[ECO "C80"]
[WhiteElo "2367"]
[BlackElo "2187"]
[Annotator "RC"]
[PlyCount "86"]
[EventDate "2024.04.13"]
[EventType "team-tourn"]
[SourceTitle "playchess.com"]
[Source "ChessBase"]
[SourceQuality "1"]
[TimeControl "900+5"]

1. e4 {[%emt 0:00:03]} e5 {[%emt 0:00:00]} 2. Nf3 {[%emt 0:00:03]} Nc6 {[%emt 0:00:01]} 3. Bb5 {[%emt 0:00:03]} a6 {[%emt 0:00:01]} 4. Ba4 {[%emt 0:00:02]} Nf6 {[%emt 0:00:01]} 5. O-O {[%emt 0:00:03]} Nxe4 {[%emt 0:00:01]} 6. d4 {[%emt 0:00:12]} b5 {[%emt 0:00:01]} 7. Bb3 {[%emt 0:00:02]} d5 {[%emt 0:00:01]} 8. dxe5 {[%emt 0:00:05]} Be6 {[%emt 0:00:01]} 9. Nbd2 {[%emt 0:00:20]} Nc5 {[%emt 0:00:02]} 10. c3 {[%emt 0:00:07]} d4 {[%emt 0:00:01]} 11. Bc2 {[%emt 0:00:07]} dxc3 {[%emt 0:00:58]} 12. bxc3 {[%emt 0:00:06]} Be7 {[%emt 0:00:35]} 13. Qe2 {[%emt 0:00:11]} Na5 {[%emt 0:00:31]} 14. Rd1 {[%emt 0:00:21]} Qc8 {[%emt 0:00:21]} 15. Ne4 {[%emt 0:00:38]} Nxe4 {[%emt 0:00:25]} 16. Qxe4 {[%emt 0:00:15]} Qb7 {[%emt 0:00:01]} 17. Qxb7 {[%emt 0:02:00]} Nxb7 {[%emt 0:00:01]} 18. Be4 {[%emt 0:00:01]} Ra7 {[%emt 0:00:53]} 19. Bc6+ {[%emt 0:00:16]} Kf8 {[%emt 0:00:01]} 20. a4 {[%emt 0:00:09]} bxa4 {[%emt 0:00:49]} 21. Be3 {[%emt 0:02:14]} Na5 {[%emt 0:01:00]} 22. Be4 {[%emt 0:00:48]} c5 {[%emt 0:00:15]} 23. Rdb1 {[%emt 0:04:15]} f5 {[%emt 0:00:55]} 24. exf6 {[%emt 0:00:11]} gxf6 {[%emt 0:00:08]} 25. Rxa4 {[%emt 0:00:16]} Nc4 {[%emt 0:01:29]} 26. Rb8+ {[%emt 0:00:17]} Kg7 {[%emt 0:00:01]} 27. Bh6+ {[%emt 0:00:03]} Kxh6 {[%emt 0:00:01]} 28. Rxh8 {[%emt 0:00:01]} f5 {[%emt 0:00:17]} 29. Bxf5 {[%emt 0:00:34]} Bxf5 {[%emt 0:00:01]} 30. Rxc4 {[%emt 0:00:01]} a5 {[%emt 0:00:01]} 31. Rf4 {[%emt 0:00:06]} Bg6 {[%emt 0:00:39]} 32. Ne5 {[%emt 0:00:18]} a4 {[%emt 0:00:21]} 33. Nc6 {[%emt 0:01:19]} Ra6 {[%emt 0:00:01]} 34. Nxe7 {[%emt 0:01:00]} a3 {[%emt 0:00:01]} 35. h4 {[%emt 0:00:06]} a2 {[%emt 0:00:24]} 36. g4 {[%emt 0:00:18]} a1=Q+ {[%emt 0:00:01]} 37. Kh2 {[%emt 0:00:03]} Qxc3 {[%emt 0:00:44]} 38. g5+ {[%emt 0:00:19]} Kh5 {[%emt 0:00:01]} 39. Rhf8 {[%emt 0:00:42]} Ra3 {[%emt 0:00:11]} 40. f3 {[%emt 0:00:19]} Qd2+ {[%emt 0:00:08]} 41. Kg3 {[%emt 0:00:00]} Qe1+ {[%emt 0:00:02]} 42. Kg2 {[%emt 0:00:02]} Ra2+ {[%emt 0:00:03]} 43. Kh3 {[%emt 0:00:01]} Qh1+ {[%emt 0:03:28]} 0-1

[Event "Wuerttemberg Rapid Teams 2024"]
[Site "B?blingen, Germany"]
[Date "2024.04.13"]
[Round "7.14"]
[White "Ramirez Marin, Ivan"]
[Black "Vujic, Branimir"]
[Result "0-1"]
[ECO "E17"]
[WhiteElo "2271"]
[BlackElo "2218"]
[Annotator "RC"]
[PlyCount "100"]
[EventDate "2024.04.13"]
[EventType "team-tourn"]
[SourceTitle "playchess.com"]
[Source "ChessBase"]
[SourceQuality "1"]
[TimeControl "900+5"]

1. c4 {[%emt 0:00:06]} e6 {[%emt 0:00:00]} 2. g3 {[%emt 0:00:02]} d5 {[%emt 0:00:02]} 3. Bg2 {[%emt 0:00:01]} Nf6 {[%emt 0:00:01]} 4. Nf3 {[%emt 0:00:01]} Be7 {[%emt 0:00:01]} 5. O-O {[%emt 0:00:03]} O-O {[%emt 0:00:01]} 6. b3 {[%emt 0:00:01]} b6 {[%emt 0:00:01]} 7. d4 {[%emt 0:00:02]} Bb7 {[%emt 0:00:01]} 8. Nc3 {[%emt 0:00:03]} Nbd7 {[%emt 0:00:01]} 9. Bb2 {[%emt 0:00:49]} c5 {[%emt 0:00:03]} 10. Ne1 {[%emt 0:01:07]} Rc8 {[%emt 0:00:22]} 11. cxd5 {[%emt 0:00:05]} Nxd5 {[%emt 0:00:09]} 12. Nxd5 {[%emt 0:00:04]} Bxd5 {[%emt 0:00:05]} 13. Bxd5 {[%emt 0:00:08]} exd5 {[%emt 0:00:01]} 14. dxc5 {[%emt 0:00:09]} Nxc5 {[%emt 0:00:02]} 15. Nf3 {[%emt 0:00:23]} Ne6 {[%emt 0:00:14]} 16. Rc1 {[%emt 0:00:12]} Rxc1 {[%emt 0:00:08]} 17. Qxc1 {[%emt 0:00:01]} Bf6 {[%emt 0:00:04]} 18. Rd1 {[%emt 0:00:08]} Bxb2 {[%emt 0:00:11]} 19. Qxb2 {[%emt 0:00:03]} Qa8 {[%emt 0:00:07]} 20. Qe5 {[%emt 0:00:29]} Rd8 {[%emt 0:00:10]} 21. h4 {[%emt 0:00:09]} Qc6 {[%emt 0:00:19]} 22. h5 {[%emt 0:00:17]} h6 {[%emt 0:00:02]} 23. e3 {[%emt 0:00:16]} Qc2 {[%emt 0:00:38]} 24. Rd2 {[%emt 0:04:51]} Qe4 {[%emt 0:01:25]} 25. Qxe4 {[%emt 0:00:28]} dxe4 {[%emt 0:00:02]} 26. Rxd8+ {[%emt 0:00:01]} Nxd8 {[%emt 0:00:01]} 27. Nd2 {[%emt 0:00:12]} f5 {[%emt 0:00:11]} 28. g4 {[%emt 0:00:01]} fxg4 {[%emt 0:00:04]} 29. Nxe4 {[%emt 0:00:02]} Kf7 {[%emt 0:00:22]} 30. Kg2 {[%emt 0:00:10]} Ke6 {[%emt 0:00:03]} 31. Kg3 {[%emt 0:00:43]} Kf5 {[%emt 0:00:04]} 32. Nd6+ {[%emt 0:02:00]} Kg5 {[%emt 0:00:11]} 33. Nc4 {[%emt 0:02:19]} Nf7 {[%emt 0:00:17]} 34. e4 {[%emt 0:00:09]} Kxh5 {[%emt 0:00:13]} 35. Kf4 {[%emt 0:00:49]} g6 {[%emt 0:03:44]} 36. e5 {[%emt 0:00:25]} Nd8 {[%emt 0:00:15]} 37. Ne3 {[%emt 0:00:30]} Ne6+ {[%emt 0:00:19]} 38. Ke4 {[%emt 0:00:01]} Kg5 {[%emt 0:00:08]} 39. Kd5 {[%emt 0:00:12]} Ng7 {[%emt 0:00:10]} 40. Kd6 {[%emt 0:00:45]} h5 {[%emt 0:00:04]} 41. Ke7 {[%emt 0:00:03]} h4 {[%emt 0:03:02]} 42. Kf7 {[%emt 0:00:08]} h3 {[%emt 0:00:45]} 43. Kxg7 {[%emt 0:00:04]} h2 {[%emt 0:00:00]} 44. e6 {[%emt 0:00:02]} h1=Q {[%emt 0:00:03]} 45. e7 {[%emt 0:00:02]} Qe4 {[%emt 0:00:23]} 46. Kf7 {[%emt 0:00:09]} Qf4+ {[%emt 0:00:02]} 47. Kg7 {[%emt 0:00:04]} Qe5+ {[%emt 0:00:03]} 48. Kf7 {[%emt 0:00:03]} Qf6+ {[%emt 0:00:01]} 49. Ke8 {[%emt 0:00:04]} Qxf2 {[%emt 0:00:02]} 50. Nd5 {[%emt 0:00:13]} Qf5 {[%emt 0:00:05]} 0-1

[Event "Wuerttemberg Rapid Teams 2024"]
[Site "B?blingen, Germany"]
[Date "2024.04.13"]
[Round "7.15"]
[White "Schuh, Karsten"]
[Black "Schnepp, Gunnar"]
[Result "1/2-1/2"]
[ECO "A07"]
[WhiteElo "2133"]
[BlackElo "2233"]
[Annotator "RC"]
[PlyCount "106"]
[EventDate "2024.04.13"]
[EventType "team-tourn"]
[SourceTitle "playchess.com"]
[Source "ChessBase"]
[SourceQuality "1"]
[TimeControl "900+5"]

1. Nf3 {[%emt 0:00:01]} Nf6 {[%emt 0:00:05]} 2. g3 {[%emt 0:00:01]} d5 {[%emt 0:00:12]} 3. c4 {[%emt 0:00:02]} d4 {[%emt 0:00:25]} 4. b4 {[%emt 0:00:16]} c5 {[%emt 0:01:48]} 5. Bb2 {[%emt 0:00:07]} g6 {[%emt 0:00:29]} 6. Bg2 {[%emt 0:00:09]} Bg7 {[%emt 0:00:04]} 7. O-O {[%emt 0:00:07]} O-O {[%emt 0:00:06]} 8. d3 {[%emt 0:00:03]} Nfd7 {[%emt 0:01:05]} 9. Nbd2 {[%emt 0:00:12]} Nc6 {[%emt 0:00:38]} 10. bxc5 {[%emt 0:00:22]} Nxc5 {[%emt 0:00:06]} 11. Rb1 {[%emt 0:01:15]} Re8 {[%emt 0:00:57]} 12. Ba3 {[%emt 0:00:02]} Qa5 {[%emt 0:00:52]} 13. Bxc5 {[%emt 0:00:59]} Qxc5 {[%emt 0:00:02]} 14. Rb5 {[%emt 0:00:38]} Qa3 {[%emt 0:00:21]} 15. Qb1 {[%emt 0:00:54]} Rb8 {[%emt 0:00:42]} 16. Ne1 {[%emt 0:01:10]} Nd8 {[%emt 0:02:13]} 17. Nc2 {[%emt 0:00:10]} Qa6 {[%emt 0:01:17]} 18. Nb3 {[%emt 0:01:36]} Ne6 {[%emt 0:02:14]} 19. Ra5 {[%emt 0:00:10]} Qb6 {[%emt 0:00:19]} 20. c5 {[%emt 0:00:25]} Qc7 {[%emt 0:00:06]} 21. Rxa7 {[%emt 0:00:03]} Nxc5 {[%emt 0:00:23]} 22. Nbxd4 {[%emt 0:01:15]} Na6 {[%emt 0:00:10]} 23. Rc1 {[%emt 0:00:23]} Qc5 {[%emt 0:00:39]} 24. Rxa6 {[%emt 0:00:15]} bxa6 {[%emt 0:00:02]} 25. Qxb8 {[%emt 0:00:01]} Bxd4 {[%emt 0:00:02]} 26. e3 {[%emt 0:00:31]} Bf6 {[%emt 0:00:26]} 27. Qb4 {[%emt 0:00:07]} Qc7 {[%emt 0:00:14]} 28. Qa3 {[%emt 0:00:03]} Qb6 {[%emt 0:00:32]} 29. Nb4 {[%emt 0:00:11]} Be6 {[%emt 0:00:42]} 30. Rc6 {[%emt 0:00:20]} Qb5 {[%emt 0:00:01]} 31. Rxa6 {[%emt 0:00:13]} Rb8 {[%emt 0:00:07]} 32. Ra8 {[%emt 0:00:49]} Kg7 {[%emt 0:00:01]} 33. Rxb8 {[%emt 0:00:01]} Qxb8 {[%emt 0:00:02]} 34. d4 {[%emt 0:00:08]} Bc4 {[%emt 0:00:08]} 35. Qc3 {[%emt 0:00:08]} Bb5 {[%emt 0:00:13]} 36. Bf1 {[%emt 0:00:19]} Bd7 {[%emt 0:00:07]} 37. Bc4 {[%emt 0:00:15]} e6 {[%emt 0:00:02]} 38. Bb3 {[%emt 0:00:05]} Qb7 {[%emt 0:00:03]} 39. a4 {[%emt 0:00:15]} h5 {[%emt 0:00:01]} 40. a5 {[%emt 0:00:01]} h4 {[%emt 0:00:04]} 41. gxh4 {[%emt 0:00:01]} Qe4 {[%emt 0:00:04]} 42. Bd1 {[%emt 0:00:23]} e5 {[%emt 0:00:09]} 43. Qd3 {[%emt 0:00:31]} Qxh4 {[%emt 0:00:03]} 44. dxe5 {[%emt 0:00:13]} Qg5+ {[%emt 0:00:03]} 45. Kf1 {[%emt 0:00:07]} Bh3+ {[%emt 0:00:03]} 46. Ke2 {[%emt 0:00:05]} Qxe5 {[%emt 0:00:07]} 47. Nd5 {[%emt 0:00:12]} Bg4+ {[%emt 0:00:17]} 48. Kd2 {[%emt 0:00:06]} Qxh2 {[%emt 0:00:09]} 49. Nxf6 {[%emt 0:00:04]} Qxf2+ {[%emt 0:00:01]} 50. Be2 {[%emt 0:00:07]} Bxe2 {[%emt 0:00:08]} 51. Ne8+ {[%emt 0:00:06]} Kf8 {[%emt 0:00:01]} 52. Qxe2 {[%emt 0:00:02]} Qxe2+ {[%emt 0:00:06]} 53. Kxe2 {[%emt 0:00:01]} Kxe8 {[%emt 0:00:01]} 1/2-1/2

[Event "Wuerttemberg Rapid Teams 2024"]
[Site "B?blingen, Germany"]
[Date "2024.04.13"]
[Round "7.16"]
[White "Geshnizjani, Ramin"]
[Black "Schuh, Bernd-Martin"]
[Result "1/2-1/2"]
[ECO "B22"]
[WhiteElo "2137"]
[BlackElo "1976"]
[Annotator "RC"]
[PlyCount "82"]
[EventDate "2024.04.13"]
[EventType "team-tourn"]
[SourceTitle "playchess.com"]
[Source "ChessBase"]
[SourceQuality "1"]
[TimeControl "900+5"]

1. e4 {[%emt 0:00:03]} c5 {[%emt 0:00:01]} 2. c3 {[%emt 0:00:02]} d5 {[%emt 0:00:03]} 3. exd5 {[%emt 0:00:03]} Qxd5 {[%emt 0:00:02]} 4. Na3 {[%emt 0:00:02]} Nc6 {[%emt 0:00:39]} 5. Nf3 {[%emt 0:00:02]} Nf6 {[%emt 0:00:19]} 6. Bc4 {[%emt 0:00:05]} Qd8 {[%emt 0:00:02]} 7. O-O {[%emt 0:01:02]} e6 {[%emt 0:00:16]} 8. Nc2 {[%emt 0:00:11]} Be7 {[%emt 0:00:03]} 9. d4 {[%emt 0:00:04]} O-O {[%emt 0:00:05]} 10. Be3 {[%emt 0:00:47]} b6 {[%emt 0:00:30]} 11. Qe2 {[%emt 0:00:21]} Bb7 {[%emt 0:00:08]} 12. Ba6 {[%emt 0:00:15]} Qc7 {[%emt 0:00:30]} 13. Bxb7 {[%emt 0:00:27]} Qxb7 {[%emt 0:00:02]} 14. dxc5 {[%emt 0:00:37]} Bxc5 {[%emt 0:00:03]} 15. Bxc5 {[%emt 0:00:02]} bxc5 {[%emt 0:00:03]} 16. Ne3 {[%emt 0:00:16]} Rfd8 {[%emt 0:00:08]} 17. Rfd1 {[%emt 0:00:29]} Rab8 {[%emt 0:00:08]} 18. Nc4 {[%emt 0:00:17]} Nd5 {[%emt 0:00:05]} 19. Qe4 {[%emt 0:00:48]} h6 {[%emt 0:00:12]} 20. Nfe5 {[%emt 0:01:26]} Nxe5 {[%emt 0:00:12]} 21. Qxe5 {[%emt 0:00:02]} Qb5 {[%emt 0:00:48]} 22. b3 {[%emt 0:00:29]} a5 {[%emt 0:00:01]} 23. Rd3 {[%emt 0:02:04]} Nf6 {[%emt 0:03:20]} 24. Rad1 {[%emt 0:03:42]} Rd5 {[%emt 0:01:42]} 25. Rxd5 {[%emt 0:00:39]} exd5 {[%emt 0:00:02]} 26. Nd6 {[%emt 0:00:09]} Qb6 {[%emt 0:00:49]} 27. Qe7 {[%emt 0:00:54]} Rf8 {[%emt 0:00:25]} 28. h3 {[%emt 0:00:25]} Qd8 {[%emt 0:00:25]} 29. Qxd8 {[%emt 0:00:05]} Rxd8 {[%emt 0:00:01]} 30. Nb7 {[%emt 0:00:02]} Re8 {[%emt 0:00:16]} 31. Kf1 {[%emt 0:00:22]} Ne4 {[%emt 0:00:07]} 32. Rxd5 {[%emt 0:00:26]} Nxc3 {[%emt 0:00:09]} 33. Rxc5 {[%emt 0:00:31]} Nxa2 {[%emt 0:00:02]} 34. Nxa5 {[%emt 0:00:05]} Nb4 {[%emt 0:00:07]} 35. Rc4 {[%emt 0:00:12]} Nd3 {[%emt 0:00:05]} 36. g3 {[%emt 0:00:04]} Re1+ {[%emt 0:00:07]} 37. Kg2 {[%emt 0:00:01]} Re2 {[%emt 0:00:01]} 38. Rc8+ {[%emt 0:00:08]} Kh7 {[%emt 0:00:02]} 39. Rc3 {[%emt 0:00:17]} Rxf2+ {[%emt 0:00:27]} 40. Kg1 {[%emt 0:00:00]} Ra2 {[%emt 0:00:11]} 41. Rxd3 {[%emt 0:00:03]} Rxa5 {[%emt 0:00:01]} 1/2-1/2

[Event "Wuerttemberg Rapid Teams 2024"]
[Site "B?blingen, Germany"]
[Date "2024.04.13"]
[Round "7.17"]
[White "Kerpe, Andreas"]
[Black "Zuferi, Enis"]
[Result "0-1"]
[ECO "A03"]
[WhiteElo "2146"]
[BlackElo "2406"]
[Annotator "RC"]
[PlyCount "48"]
[EventDate "2024.04.13"]
[EventType "team-tourn"]
[SourceTitle "playchess.com"]
[Source "ChessBase"]
[SourceQuality "1"]
[TimeControl "900+5"]

1. f4 {[%emt 0:00:05]} d5 {[%emt 0:00:01]} 2. Nf3 {[%emt 0:00:01]} g6 {[%emt 0:00:01]} 3. g3 {[%emt 0:00:01]} Bg7 {[%emt 0:00:02]} 4. Bg2 {[%emt 0:00:01]} c6 {[%emt 0:00:02]} 5. e3 {[%emt 0:00:33]} Nd7 {[%emt 0:00:27]} 6. O-O {[%emt 0:00:52]} Nh6 {[%emt 0:00:02]} 7. Nc3 {[%emt 0:01:26]} O-O {[%emt 0:00:07]} 8. d3 {[%emt 0:00:16]} e5 {[%emt 0:01:44]} 9. e4 {[%emt 0:01:33]} dxe4 {[%emt 0:00:49]} 10. dxe4 {[%emt 0:01:35]} Ng4 {[%emt 0:00:55]} 11. Qe2 {[%emt 0:00:31]} Re8 {[%emt 0:01:11]} 12. Nh4 {[%emt 0:00:41]} Nc5 {[%emt 0:03:08]} 13. f5 {[%emt 0:01:05]} Nf6 {[%emt 0:00:33]} 14. Bg5 {[%emt 0:00:36]} Qb6 {[%emt 0:00:44]} 15. Rab1 {[%emt 0:03:29]} Ncxe4+ {[%emt 0:02:51]} 16. Be3 {[%emt 0:00:01]} Nxc3 {[%emt 0:00:01]} 17. bxc3 {[%emt 0:00:01]} Qc7 {[%emt 0:00:24]} 18. Bg5 {[%emt 0:00:27]} Nd5 {[%emt 0:00:10]} 19. fxg6 {[%emt 0:00:53]} hxg6 {[%emt 0:00:04]} 20. Qd3 {[%emt 0:01:00]} Be6 {[%emt 0:01:52]} 21. c4 {[%emt 0:00:27]} e4 {[%emt 0:00:00]} 22. Bxe4 {[%emt 0:00:32]} Nc3 {[%emt 0:00:02]} 23. Rbe1 {[%emt 0:00:17]} Qa5 {[%emt 0:00:53]} 24. Bd2 {[%emt 0:00:11]} Qc5+ {[%emt 0:00:00]} 0-1